{"text_format":"1","workbook":"xlsx","n_sheets":1,"sheets":["Приложение № 8"],"not_rendered":{"charts":0,"images":0,"macros":0,"external_links":0,"defined_names":0,"comments":0,"pivot_tables":0},"unopened":[],"bounds":{"document_bytes":16777216,"sheet_cells":100000,"rows_first":2000,"rows_last":500,"rows_between":2000,"halvings":0,"cell_chars":16384,"cell_head_chars":4096},"cells_cut":0,"cells_raw":0,"read":"whole","date_system":"1900"}

{"sheet":"Приложение № 8","index":0,"n_rows":61,"n_cols":27,"rows_kept":61,"cut":false,"hidden":false,"merged":[[7,13,7,25],[8,1,8,11],[9,1,9,11],[10,1,10,11],[11,1,11,11],[12,1,12,11],[19,0,22,0],[19,1,22,1],[19,2,19,4],[19,5,22,5],[19,6,19,9],[19,10,19,11],[13,1,13,11],[14,1,14,11],[15,1,15,11],[16,1,16,11],[17,1,17,11],[18,1,18,11],[7,0,7,12],[16,14,16,24],[17,14,17,24],[18,14,18,24],[19,13,22,13],[19,25,22,25],[34,1,34,11],[35,1,35,11],[36,1,36,11],[37,1,37,11],[19,12,22,12],[20,2,22,2],[20,3,22,3],[20,4,22,4],[20,6,22,6],[20,7,20,9],[20,10,22,10],[20,11,22,11],[21,7,22,7],[21,8,21,9],[57,0,58,0],[57,1,58,1],[57,2,57,11],[58,2,58,11],[59,1,59,11],[50,1,50,11],[51,1,51,11],[52,1,52,11],[53,1,53,11],[54,1,54,11],[55,1,55,11],[60,2,60,11],[8,14,8,24],[9,14,9,24],[10,14,10,24],[11,14,11,24],[12,14,12,24],[13,14,13,24],[14,14,14,24],[15,14,15,24],[56,1,56,11],[44,1,44,11],[45,1,45,11],[46,1,46,11],[47,1,47,11],[48,1,48,11],[49,1,49,11],[38,1,38,11],[39,1,39,11],[40,1,40,11],[41,1,41,11],[42,1,42,11],[43,1,43,11],[32,2,32,11],[33,1,33,11],[42,14,42,24],[43,14,43,24],[32,15,32,24],[33,14,33,24],[34,14,34,24],[35,14,35,24],[36,14,36,24],[37,14,37,24],[19,14,22,14],[19,15,19,17],[19,18,22,18],[19,19,19,22],[19,23,19,24],[20,15,22,15],[20,16,22,16],[20,17,22,17],[20,19,22,19],[20,20,20,22],[20,23,22,23],[20,24,22,24],[21,20,22,20],[21,21,21,22],[5,0,5,25],[60,15,60,24],[56,14,56,24],[57,13,58,13],[57,14,58,14],[57,15,57,24],[58,15,58,24],[59,14,59,24],[50,14,50,24],[51,14,51,24],[52,14,52,24],[53,14,53,24],[54,14,54,24],[55,14,55,24],[44,14,44,24],[45,14,45,24],[46,14,46,24],[47,14,47,24],[48,14,48,24],[49,14,49,24],[38,14,38,24],[39,14,39,24],[40,14,40,24],[41,14,41,24]]}
[]
[null,null,null,null,null,null,null,null,null,null,null,null,null,null,null,null,null,null,null,null,null,null,null,null,null,null,"Приложение № 8"]
[null,null,null,null,null,null,null,null,null,null,null,null,null,null,null,null,null,null,null,null,null,null,null,null,null,null,"к Закону Приднестровской Молдавской Республики "]
[null,null,null,null,null,null,null,null,null,null,null,null,null,null,null,null,null,null,null,null,null,null,null,null,null,null,"\"О республиканском бюджете на 2022 год\""]
[]
["Основные характеристики Дорожного фонда Приднестровской Молдавской Республики на 2022 год"]
[null,null,null,null,null,null,null,null,null,null,null,null,null,null,null,null,null,null,null,null,null,null,null,null,null,"(руб.)"]
["действующая редакция",null,null,null,null,null,null,null,null,null,null,null,null,"предлагаемая редакция",null,null,null,null,null,null,null,null,null,null,null,null,"Отклонения, руб."]
["1.","Переходящие остатки по состоянию на 01.01.2022 года",null,null,null,null,null,null,null,null,null,null,{"$f":"SUM(M10:M11)","v":38513611},"1.","Переходящие остатки по состоянию на 01.01.2022 года",null,null,null,null,null,null,null,null,null,null,{"$f":"SUM(Z10:Z11)","v":38513611},{"$f":"Z9-M9","v":0}]
["1.1.","Дорожного фонда на счете Министерства финансов Приднестровской Молдавской Республики",null,null,null,null,null,null,null,null,null,null,34263453,"1.1.","Дорожного фонда на счете Министерства финансов Приднестровской Молдавской Республики",null,null,null,null,null,null,null,null,null,null,34263453,{"$f":"Z10-M10","v":0}]
["1.2.","Дорожного фонда на счетах местных бюджетов городов и районов, ВСЕГО, в том числе:",null,null,null,null,null,null,null,null,null,null,4250158,"1.2.","Дорожного фонда на счетах местных бюджетов городов и районов, ВСЕГО, в том числе:",null,null,null,null,null,null,null,null,null,null,4250158,0]
["2.","ДОХОДЫ ВСЕГО, в том числе:",null,null,null,null,null,null,null,null,null,null,{"$f":"SUM(M13:M15)","v":220388554},"2.","ДОХОДЫ ВСЕГО, в том числе:",null,null,null,null,null,null,null,null,null,null,{"$f":"SUM(Z13:Z15)","v":225007957},4619403]
["2.1.","Налог с владельцев транспортных средств, уплачиваемый юридическими лицами",null,null,null,null,null,null,null,null,null,null,11728432,"2.1.","Налог с владельцев транспортных средств, уплачиваемый юридическими лицами",null,null,null,null,null,null,null,null,null,null,11728432,0]
["2.2.","Отчисления от налога на доходы организаций",null,null,null,null,null,null,null,null,null,null,83347743,"2.2.","Отчисления от налога на доходы организаций",null,null,null,null,null,null,null,null,null,null,{"$f":"83347743+4619403","v":87967146},4619403]
["2.3.","Отчисления от единого таможенного платежа в размере 14,34 %",null,null,null,null,null,null,null,null,null,null,125312379,"2.3.","Отчисления от единого таможенного платежа в размере 14,34 %",null,null,null,null,null,null,null,null,null,null,125312379,0]
["3.","Возмещение в местный бюджет Рыбницкого района и города Рыбницы (счет дорожного фонда (субсидии)) необоснованно использованных средств Дорожного фонда в 2021 году  во исполнение Постановления Счетной палаты Приднестровской Молдавской Республики от 27.12.2021 года № 15/V ",null,null,null,null,null,null,null,null,null,null,433422,"3.","Возмещение в местный бюджет Рыбницкого района и города Рыбницы (счет дорожного фонда (субсидии)) необоснованно использованных средств Дорожного фонда в 2021 году  во исполнение Постановления Счетной палаты Приднестровской Молдавской Республики от 27.12.2021 года № 15/V ",null,null,null,null,null,null,null,null,null,null,433422,0]
["4.","Возмещение в местный бюджет Каменского района и города Каменки  (счет дорожного фонда (субсидии)) необоснованно использованных средств Дорожного фонда в 2021 году  во исполнение Постановления Счетной палаты Приднестровской Молдавской Республики от 27.12.2021 года № 15/IV ",null,null,null,null,null,null,null,null,null,null,173108,"4.","Возмещение в местный бюджет Каменского района и города Каменки  (счет дорожного фонда (субсидии)) необоснованно использованных средств Дорожного фонда в 2021 году  во исполнение Постановления Счетной палаты Приднестровской Молдавской Республики от 27.12.2021 года № 15/IV ",null,null,null,null,null,null,null,null,null,null,173108,0]
["5.","РАСХОДЫ ВСЕГО, в том числе:",null,null,null,null,null,null,null,null,null,null,{"$f":"SUM(M19+M52+M55+M58+M60+M43+M59)","v":228176141},"5.","РАСХОДЫ ВСЕГО, в том числе:",null,null,null,null,null,null,null,null,null,null,{"$f":"SUM(Z19+Z52+Z55+Z58+Z60+Z43+Z59)","v":232795544},4619403]
["5.1","Субсидии местным бюджетам на исполнение программ развития дорожной отрасли ВСЕГО, в т.ч.:",null,null,null,null,null,null,null,null,null,null,{"$f":"SUM(M24+M36+M37+M34+M35+M39+M38+M33)","v":142465095},"5.1","Субсидии местным бюджетам на исполнение программ развития дорожной отрасли ВСЕГО, в т.ч.:",null,null,null,null,null,null,null,null,null,null,{"$f":"SUM(Z24+Z36+Z37+Z34+Z35+Z39+Z38+Z33)","v":142465095},0]
["№ п/п","Наименование государственной администрации","Доли для распределения государственными администрациями субсидий, направленных в местные бюджеты городов и районов",null,null,"Доля для распределения  иных                                                         поступлений в Дорожный фонд  ПМР","Распределение средств для формирования программ развития дорожной отрасли, руб.",null,null,null,"Источники финансирования расходов по программам развития дорожной отрасли, руб.",null," Итого субсидий на исполнение  программ развития дорожной отрасли, руб.","№ п/п","Наименование государственной администрации","Доли для распределения государственными администрациями субсидий, направленных в местные бюджеты городов и районов",null,null,"Доля для распределения  иных                                                         поступлений в Дорожный фонд  ПМР","Распределение средств для формирования программ развития дорожной отрасли, руб.",null,null,null,"Источники финансирования расходов по программам развития дорожной отрасли, руб.",null," Итого субсидий на исполнение  программ развития дорожной отрасли, руб."]
[null,null,"на государственные дороги","на улично-дорожную сеть","Всего",null,"по автомобильным дорогам общего пользования, находящимся в гос. собственности","по автомобильным дорогам общего пользования, находящимся в муниципальной собственности",null,null,"налог с владельцев                                транспортных средств","иные поступления в                                          Дорожный фонд",null,null,null,"на государственные дороги","на улично-дорожную сеть","Всего",null,"по автомобильным дорогам общего пользования, находящимся в гос. собственности","по автомобильным дорогам общего пользования, находящимся в муниципальной собственности",null,null,"налог с владельцев                                транспортных средств","иные поступления в                                          Дорожный фонд",null,0]
[null,null,null,null,null,null,null,"ВСЕГО","в том числе:",null,null,null,null,null,null,null,null,null,null,null,"ВСЕГО","в том числе:",null,null,null,null,0]
[null,null,null,null,null,null,null,null,"по автом. дорогам общего пользования, находящимся в мун. собств.","на стр-во и реконструкцию остановочных пунктов",null,null,null,null,null,null,null,null,null,null,null,"по автом. дорогам общего пользования, находящимся в мун. собств.","на стр-во и реконструкцию остановочных пунктов",null,null,null,0]
["5.1.1.","Всего субсидий из республиканского бюджета, в том числе:",null,null,null,{"$f":"SUM(F25:F32)","v":1},{"$f":"G28+G29+G30+G31+G32","v":54234266},{"$f":"H25+H26+H27+H28+H29+H30+H31+H32","v":71168710},{"$f":"SUM(I25:I32)","v":71168710},{"$f":"SUM(J25:J32)","v":0},{"$f":"SUM(K25:K32)","v":11728432},{"$f":"SUM(L25:L32)","v":113674544},{"$f":"SUM(M25:M32)","v":125402976},"5.1.1.","Всего субсидий из республиканского бюджета, в том числе:",null,null,null,{"$f":"SUM(S25:S32)","v":1},{"$f":"T28+T29+T30+T31+T32","v":54234266},{"$f":"U25+U26+U27+U28+U29+U30+U31+U32","v":71168710},{"$f":"SUM(V25:V32)","v":71168710},{"$f":"SUM(W25:W32)","v":0},{"$f":"SUM(X25:X32)","v":11728432},{"$f":"SUM(Y25:Y32)","v":113674544},{"$f":"SUM(Z25:Z32)","v":125402976},0]
["а)","г.Тирасполя",null,1,1,0.12820000000000001,0,{"$f":"M25*D25","v":20101015},{"$f":"H25-J25","v":20101015},0,5533127,14567888,{"$f":"L25+K25","v":20101015},"а)","г.Тирасполя",null,1,1,0.12820000000000001,0,{"$f":"Z25*Q25","v":20101015},{"$f":"U25-W25","v":20101015},0,5533127,14567888,{"$f":"Y25+X25","v":20101015},0]
["б)","г. Днестровска",null,1,1,2.8E-3,0,590000,{"$f":"H26-J26","v":590000},0,273439,316561,{"$f":"L26+K26","v":590000},"б)","г. Днестровска",null,1,1,2.8E-3,0,590000,{"$f":"U26-W26","v":590000},0,273439,316561,{"$f":"Y26+X26","v":590000},0]
["в)","г. Бендеры",null,1,1,0.10979999999999999,0,14057115,14057115,0,1573381,12483734,14057115,"в)","г. Бендеры",null,1,1,0.10979999999999999,0,14057115,14057115,0,1573381,12483734,14057115,0]
["г)","Григориопольского района и г. Григориополя",0.55369999999999997,{"$f":"E28-C28","v":0.44630000000000003},1,0.12,7782405,6271619,6271619,0,407114,13646910,14054024,"г)","Григориопольского района и г. Григориополя",0.55369999999999997,{"$f":"R28-P28","v":0.44630000000000003},1,0.12,7782405,6271619,6271619,0,407114,13646910,14054024,0]
["д)","Дубоссарского района и г. Дубоссары",0.53820000000000001,{"$f":"E29-C29","v":0.46179999999999999},1,0.14599999999999999,9311078,7988817,7988817,0,706315,16593580,17299895,"д)","Дубоссарского района и г. Дубоссары",0.53820000000000001,{"$f":"R29-P29","v":0.46179999999999999},1,0.14599999999999999,9311078,7988817,7988817,0,706315,16593580,17299895,0]
["е)","Каменского района и г. Каменки",0.79630000000000001,0.20369999999999999,1,8.6699999999999999E-2,8119288,2076753,2076753,0,338811,9857230,10196041,"е)","Каменского района и г. Каменки",0.79630000000000001,0.20369999999999999,1,8.6699999999999999E-2,8119288,2076753,2076753,0,338811,9857230,10196041,0]
["ж)","Рыбницкого района и г. Рыбницы ",0.56110000000000004,0.43889999999999996,1,0.19620000000000001,13530143,10583013,10583013,0,1806688,22306468,{"$f":"L31+K31","v":24113156},"ж)","Рыбницкого района и г. Рыбницы ",0.56110000000000004,0.43889999999999996,1,0.19620000000000001,13530143,10583013,10583013,0,1806688,22306468,{"$f":"Y31+X31","v":24113156},0]
["з)","Слободзейского района и г. Слободзеи ",0.61990000000000001,0.38009999999999999,1,0.21029999999999999,15491352,9500378,9500378,0,1089557,23902173,24991730,"з)","Слободзейского района и г. Слободзеи ",0.61990000000000001,0.38009999999999999,1,0.21029999999999999,15491352,9500378,9500378,0,1089557,23902173,{"$f":"Y32+X32","v":24991730},0]
["5.1.2.","Государственным администрациям городов и районов","для перечисления 5,31% поступлений Дорожного фонда (за исключением налога с владельцев транспортных средств) на приобретение дорожной техники  (Приложение № 8.4)",null,null,null,null,null,null,null,null,null,0,"5.1.2.","Государственным администрациям городов и районов","для перечисления 5,31% поступлений Дорожного фонда (за исключением налога с владельцев транспортных средств) на приобретение дорожной техники  (Приложение № 8.4)",null,null,null,null,null,null,null,null,null,0,0]
["5.1.3.","Целевые субсидии государственной администрации Слободзейского района и города Слободзеи на строительство, реконструкцию и ремонт ливневой канализации в районе ул. Милева, г.Тирасполь, и с. Суклея, в том числе проектные работы ",null,null,null,null,null,null,null,null,null,null,5000957,"5.1.3.","Целевые субсидии государственной администрации Слободзейского района и города Слободзеи на строительство, реконструкцию и ремонт ливневой канализации в районе ул. Милева, г.Тирасполь, и с. Суклея, в том числе проектные работы ",null,null,null,null,null,null,null,null,null,null,5000957,0]
["5.1.4.","Целевые субсидии государственной администрации города Тирасполя и города Днестровска на расширение участков дорог по ул. Одесской, уширение участка ул. Правды от  ул. 25 Октября до ул. Карла Либкнехта и участка ул. Карла Либкнехта от ул. Правды до ул. Крупской (нечетная сторона)",null,null,null,null,null,null,null,null,null,null,7200000,"5.1.4.","Целевые субсидии государственной администрации города Тирасполя и города Днестровска на расширение участков дорог по ул. Одесской, уширение участка ул. Правды от ул. 25 Октября до ул. Карла Либкнехта и участка ул. Карла Либкнехта от ул. Правды до ул. Крупской (нечетная сторона)",null,null,null,null,null,null,null,null,null,null,7200000,0]
["5.1.5.","Целевые субсидии государственной администрации Григориопольского района и города Григориополя на ликвидацию аварийной ситуации по а/д Тирасполь - Каменка  (обход г. Григориополя)",null,null,null,null,null,null,null,null,null,null,1369400,"5.1.5.","Целевые субсидии государственной администрации Григориопольского района и города Григориополя на ликвидацию аварийной ситуации по а/д Тирасполь - Каменка   (обход г. Григориополя)",null,null,null,null,null,null,null,null,null,null,1369400,0]
["5.1.6.","Целевые субсидии государственной администрации Рыбницкого района и города Рыбницы на ликвидацию аварийной ситуации по а/д Тирасполь - Каменка, км 142-143",null,null,null,null,null,null,null,null,null,null,1835751,"5.1.6.","Целевые субсидии государственной администрации Рыбницкого района и города Рыбницы на ликвидацию аварийной ситуации по а/д Тирасполь - Каменка, км 142-143",null,null,null,null,null,null,null,null,null,null,1835751,0]
["5.1.7.","Целевые субсидии государственной администрации г. Днестровска на реконструкцию и ремонт пешеходной дорожки, ведущей к Днестровскому водохранилищу",null,null,null,null,null,null,null,null,null,null,1400000,"5.1.7.","Целевые субсидии государственной администрации г. Днестровска на реконструкцию и ремонт пешеходной дорожки, ведущей к Днестровскому водохранилищу",null,null,null,null,null,null,null,null,null,null,1400000,0]
["5.1.8.","Недофинансирование расходов Дорожного фонда ввиду  отсутствия поступлений  налога с владельцев транспортных средств, в том числе:",null,null,null,null,null,null,null,null,null,null,{"$f":"SUM(M40:M42)","v":256011},"5.1.8.","Недофинансирование расходов Дорожного фонда ввиду  отсутствия поступлений  налога с владельцев транспортных средств, в том числе:",null,null,null,null,null,null,null,null,null,null,{"$f":"SUM(Z40:Z42)","v":256011},0]
[null,"государственная администрация Дубоссарского района и города Дубоссары ",null,null,null,null,null,null,null,null,null,null,195616,null,"государственная администрация Дубоссарского района и города Дубоссары ",null,null,null,null,null,null,null,null,null,null,195616,0]
[null,"государственная администрация Каменского района и города Каменки ",null,null,null,null,null,null,null,null,null,null,7257,null,"государственная администрация Каменского района и города Каменки ",null,null,null,null,null,null,null,null,null,null,7257,0]
[null,"государственная администрация Рыбницкого района и города Рыбницы ",null,null,null,null,null,null,null,null,null,null,53138,null,"государственная администрация Рыбницкого района и города Рыбницы ",null,null,null,null,null,null,null,null,null,null,53138,0]
["5.2.","за счет остатков Дорожного фонда на счетах местных бюджетов городов и районов, ВСЕГО, в том числе:",null,null,null,null,null,null,null,null,null,null,{"$f":"SUM(M44:M51)","v":4250158},"5.2.","за счет остатков Дорожного фонда на счетах местных бюджетов городов и районов, ВСЕГО, в том числе:",null,null,null,null,null,null,null,null,null,null,{"$f":"SUM(Z44:Z51)","v":4250158},0]
["а)","г.Тирасполя",null,null,null,null,null,null,null,null,null,null,1205262,"а)","г.Тирасполя",null,null,null,null,null,null,null,null,null,null,1205262,0]
["б)","г. Днестровска",null,null,null,null,null,null,null,null,null,null,309259,"б)","г. Днестровска",null,null,null,null,null,null,null,null,null,null,309259,0]
["в)","г. Бендеры",null,null,null,null,null,null,null,null,null,null,1900000,"в)","г. Бендеры",null,null,null,null,null,null,null,null,null,null,1900000,0]
["г)","Григориопольского района и г. Григориополя",null,null,null,null,null,null,null,null,null,null,151174,"г)","Григориопольского района и г. Григориополя",null,null,null,null,null,null,null,null,null,null,151174,0]
["д)","Дубоссарского района и г. Дубоссары",null,null,null,null,null,null,null,null,null,null,77095,"д)","Дубоссарского района и г. Дубоссары",null,null,null,null,null,null,null,null,null,null,77095,0]
["е)","Каменского района и г. Каменки",null,null,null,null,null,null,null,null,null,null,499127,"е)","Каменского района и г. Каменки",null,null,null,null,null,null,null,null,null,null,499127,0]
["ж)","Рыбницкого района и г. Рыбницы ",null,null,null,null,null,null,null,null,null,null,65499,"ж)","Рыбницкого района и г. Рыбницы ",null,null,null,null,null,null,null,null,null,null,65499,0]
["з)","Слободзейского района и г. Слободзеи ",null,null,null,null,null,null,null,null,null,null,42742,"з)","Слободзейского района и г. Слободзеи ",null,null,null,null,null,null,null,null,null,null,42742,0]
["5.3.","Увеличение местного бюджета Рыбницкого района и города Рыбницы (счет дорожного фонда (субсидии)), образовавшееся во исполнение Постановления Счетной палаты Приднестровской Молдавской Республики от 27.12.2021 года № 15/V , в том числе:",null,null,null,null,null,null,null,null,null,null,{"$f":"SUM(M53:M54)","v":433422},"5.3.","Увеличение местного бюджета Рыбницкого района и города Рыбницы (счет дорожного фонда (субсидии)), образовавшееся во исполнение Постановления Счетной палаты Приднестровской Молдавской Республики от 27.12.2021 года № 15/V , в том числе:",null,null,null,null,null,null,null,null,null,null,{"$f":"SUM(Z53:Z54)","v":433422},0]
[null,"по автомобильным дорогам общего пользования, находящимся в государственной собственности, на содержание автомобильных дорог",null,null,null,null,null,null,null,null,null,null,285938,null,"по автомобильным дорогам общего пользования, находящимся в государственной собственности, на содержание автомобильных дорог",null,null,null,null,null,null,null,null,null,null,285938,0]
[null,"по автомобильным дорогам общего пользования, находящимся в муниципальной собственности, на ремонт дорог  в сельской местности ",null,null,null,null,null,null,null,null,null,null,147484,null,"по автомобильным дорогам общего пользования, находящимся в муниципальной собственности, на ремонт дорог  в сельской местности ",null,null,null,null,null,null,null,null,null,null,147484,0]
["5.4.","Увеличение местного бюджета Каменского района и города Каменки (счет дорожного фонда (субсидии)), образовавшееся во исполнение Постановления Счетной палаты Приднестровской Молдавской Республики от 27.12.2021 года № 15/IV , в том числе:",null,null,null,null,null,null,null,null,null,null,{"$f":"SUM(M56:M57)","v":173108},"5.4.","Увеличение местного бюджета Каменского района и города Каменки (счет дорожного фонда (субсидии)), образовавшееся во исполнение Постановления Счетной палаты Приднестровской Молдавской Республики от 27.12.2021 года № 15/IV , в том числе:",null,null,null,null,null,null,null,null,null,null,{"$f":"SUM(Z56:Z57)","v":173108},0]
[null,"по автомобильным дорогам общего пользования, находящимхся в государственной собственности, на содержание автомобильных дорог",null,null,null,null,null,null,null,null,null,null,170568,null,"по автомобильным дорогам общего пользования, находящимхся в государственной собственности, на содержание автомобильных дорог",null,null,null,null,null,null,null,null,null,null,170568,0]
[null,"по автомобильным дорогам общего пользования, находящимся в муниципальной собственности",null,null,null,null,null,null,null,null,null,null,2540,null,"по автомобильным дорогам общего пользования, находящимся в муниципальной собственности",null,null,null,null,null,null,null,null,null,null,2540,0]
["5.5.","Министерство экономического развития Приднестровской Молдавской Республики ","для перечисления 0,68% поступлений Дорожного фонда ПМР (за исключением налога с владельцев транспортных средств) на проведение работ по  обследованию мостовых сооружений и на выполнение проектно-изыскательских работ, связанных с содержанием, ремонтом и развитием (строительством, реконструкцией) автомобильных дорог общего пользования и их составных частей, находящихся в государственной и муниципальной собственности, и экспертизе проектно-сметной документации (Приложение № 8.2)",null,null,null,null,null,null,null,null,null,1423760,"5.5.","Министерство экономического развития Приднестровской Молдавской Республики ","для перечисления 0,68% поступлений Дорожного фонда ПМР (за исключением налога с владельцев транспортных средств) на проведение работ по  обследованию мостовых сооружений и на выполнение проектно-изыскательских работ, связанных с содержанием, ремонтом и развитием (строительством, реконструкцией) автомобильных дорог общего пользования и их составных частей, находящихся в государственной и муниципальной собственности, и экспертизе проектно-сметной документации (Приложение № 8.2)",null,null,null,null,null,null,null,null,null,1423760,0]
[null,null,"для перечисления 2,25% поступлений Дорожного фонда (за исключением налога с владельцев транспортных средств) на погашение задолженности дорожных предприятий перед ГУП \"Дубоссарская ГЭС\" (Приложение № 8.3)",null,null,null,null,null,null,null,null,null,0,null,null,"для перечисления 2,25% поступлений Дорожного фонда (за исключением налога с владельцев транспортных средств) на погашение задолженности дорожных предприятий перед ГУП \"Дубоссарская ГЭС\" (Приложение № 8.3)",null,null,null,null,null,null,null,null,null,0,0]
["5.6.","Резерв Дорожного фонда",null,null,null,null,null,null,null,null,null,null,79430598,"5.6.","Резерв Дорожного фонда",null,null,null,null,null,null,null,null,null,null,84050001,4619403]
["6.","Министерство финансов                                                    Приднестровской Молдавской Республики ","на финансирование расходов по социально защищенным статьям",null,null,null,null,null,null,null,null,null,31332554,"6.","Министерство финансов                                                    Приднестровской Молдавской Республики ","на финансирование расходов по социально защищенным статьям",null,null,null,null,null,null,null,null,null,31332554,0]